Cogmind - Beta 14 @@@ ROGUE MODE // 2024.12.17 @ 22:51:51 Player: Julie Result: Destroyed by KT-2XT(R) with Subdweller Laser Performance ------------- Evolutions (0) 0 Regions Visited (2) 400 Robots Destroyed (13) 65 Value Destroyed (383) 383 Prototype IDs (13) 260 Alien Tech Used (0) 0 Bonus (0) 0 TOTAL SCORE: 1108 Bonus ------- None Cogmind --------- Core Integrity 0/250 Matter 296/300 Energy 106/125 System Corruption 0% Temperature Cool (6) Movement Walking (260) Ox2 Location -10/Subcaves Parts ------- > --- POWER (1) -------- Light Ion Engine > --- PROPULSION (2) --- Aluminum Leg Aluminum Leg > --- UTILITY (2) ------ High-capacity Storage Unit Hacking Suite > --- WEAPON (2) ------- Subdweller Laser Barrage Gun > --- INVENTORY (20) --- Subdweller Power Source Subdweller Power Source Light Treads Small Storage Unit Light Armor Plating Makeshift Light Armor Plating Subdweller Shrapnel Launcher Peak State ------------ > --- POWER ------------ Subdweller Power Source > --- PROPULSION ------- Aluminum Leg Aluminum Leg > --- UTILITY ---------- High-capacity Storage Unit Hacking Suite > --- WEAPON ----------- Subdweller Laser Barrage Gun > --- INVENTORY -------- Light Ion Engine Light Treads Small Storage Unit Light Armor Plating [Rating: 13] Favorites ----------- Power Light Ion Engine Engine Light Ion Engine Propulsion Aluminum Leg Treads Light Treads Leg Aluminum Leg Utility Hacking Suite Storage High-capacity Storage Unit Hackware Hacking Suite Weapon Subdweller Laser Energy Gun Subdweller Laser Ballistic Gun Barrage Gun Special Weapon Flamer Build | -11 -10 -10 ------- Run | Yrd Mat Sub Slots Evolved . | . . . Power . | . . . Propulsion . | . . . Utility . | . . . Weapon . | . . . Parts Attached 19 | 6 5 8 Power 3 | 1 . 2 Engine 3 | 1 . 2 Core . | . . . Reactor . | . . . Propulsion 4 | 2 . 2 Treads 2 | 2 . . Leg 2 | . . 2 Wheel . | . . . Hover . | . . . Flight . | . . . Utility 4 | 1 3 . Device . | . . . Storage 3 | 1 2 . Processor . | . . . Hackware 1 | . 1 . Protection . | . . . Artifact . | . . . Weapon 8 | 2 2 4 Energy Gun 3 | 1 . 2 Energy Cannon . | . . . Ballistic Gun 4 | 1 2 1 Ballistic Cannon . | . . . Launcher . | . . . Special Weapon 1 | . . 1 Impact Weapon . | . . . Slashing Weapon . | . . . Piercing Weapon . | . . . Special Melee Weapon . | . . . Unidentified Prototypes . | . . . Parts Lost 5 | . . 5 Power 1 | . . 1 Propulsion 1 | . . 1 Utility . | . . . Weapon 3 | . . 3 Highest Loss Streak 3 | . . 3 To Critical Strikes 1 | . . 1 Average Slot Usage (%) 93 | . 99 91 Engine 8 | . 14 7 Treads 8 | . 28 5 Leg 19 | . . 22 Storage 14 | . 15 14 Hackware 13 | . 12 14 Energy Gun 12 | . . 14 Ballistic Gun 13 | . 27 10 Peak Build Rating 13 | 6 9 13 Average Rating 10 | 5 8 11 On Entrance 5 | . 6 9 Naked Turns . | . . . Heaviest Build 52 | 11 46 52 Greatest Support 40 | 40 40 40 Greatest Overweight (x) 3 | 3 1 2 Average Overweight (x) 1 | . . 1 Largest Inventory Capacity 20 | 8 20 20 Average Capacity 18 | 7 12 20 Most Carried 7 | 3 6 7 Average Carried 5 | 1 5 5 Final Capacity 20 | 8 20 20 Final Carried 7 | 3 6 7 Class Distribution -------------------- 100% | Mutant Dominant Class ---------------- Mutant | -10/Materials Mutant | -10/Subcaves Resources | -11 -10 -10 ----------- Run | Yrd Mat Sub Matter Collected 545 | 260 182 103 Remotely . | . . . Salvage Created 396 | . 285 111 Parts 31 | . 21 10 Haulers Intercepted . | . . . Recyclers Shooed . | . . . Parts Field Recycled . | . . . Retrieved Matter . | . . . Parts Self-Destructed 9 | . . 9 Prevented . | . . . Kills | -11 -10 -10 ------- Run | Yrd Mat Sub Combat Hostiles Destroyed 12 | . 9 3 Guns 12 | . 9 3 Classes Destroyed 4 | . 3 1 Operator 1 | . 1 . Swarmer 3 | . 3 . Grunt 6 | . 6 . Subdweller 3 | . . 3 Best Kill Streak 3 | . 3 2 Combat Bots Only 3 | . 3 2 Max Kills in Single Turn 2 | . 2 1 Gunslinging 1 | . 1 . Exploded . | . . . Melee . | . . . Uniques/NPCs Destroyed . | . . . Combat | -11 -10 -10 -------- Run | Yrd Mat Sub Hostile Shots Fired 91 | . 56 35 Missed 27 | . 21 6 Damage Taken 1062 | . 353 709 Core 259 | . 50 209 Absorbed by Shields . | . . . Core Remaining (%) 100 | 100 . . Volleys Fired 59 | . 34 25 Largest 2 | . 2 2 Hottest 150 | . 40 150 Shots Fired 104 | . 68 36 Gun 103 | . 68 35 Cannon . | . . . Launcher . | . . . Special 1 | . . 1 Kinetic 88 | . 68 20 Thermal 16 | . . 16 Explosive . | . . . Electromagnetic . | . . . Robot Hit Streak 25 | . 5 25 Robot Miss Streak 3 | . 3 3 Penetration Max . | . . . Secondary Targets 2 | . 1 1 Max Gunslinging Chain 1 | . 1 1 Shots Hit Robots 67 | . 35 32 Core Hits 24 | . 17 7 Critical Kills . | . . . Critical Parts Destroyed . | . . . Critical Strikes 2 | . . 2 Burn 1 | . . 1 Destroy 1 | . . 1 Melee Attacks . | . . . Impact . | . . . Slashing . | . . . Piercing . | . . . Sneak Attacks . | . . . Combat Hostiles . | . . . Follow-up Attacks . | . . . Damage Inflicted 704 | . 370 334 Guns 694 | . 370 324 Cannons . | . . . Explosions . | . . . Melee . | . . . Ramming . | . . . Kinetic 579 | . 370 209 Thermal 125 | . . 125 Explosive . | . . . Electromagnetic . | . . . Impact . | . . . Slashing . | . . . Piercing . | . . . Highest Corruption . | . . . Average Corruption . | . . . Corruption Purged . | . . . Corruption Blocked . | . . . Overload Shots . | . . . Overflow Damage . | . . . Projectiles . | . . . Explosions . | . . . Melee . | . . . Knockbacks . | . . . Impact . | . . . Kinetic . | . . . Secondary . | . . . Self-Inflicted Damage . | . . . Shots . | . . . Rammed . | . . . Targets Rammed . | . . . Kicked . | . . . Crushed . | . . . Highest Temperature 18 | . 18 . Average Temperature 7 | . 7 . Received Heat Transfer 162 | . 114 48 Siege Activations . | . . . Robots Corrupted . | . . . Combat Hostiles . | . . . Parts Fried . | . . . Impact Corruptions . | . . . Robots Melted . | . . . Combat Hostiles . | . . . Parts Melted 1 | . . 1 Heat Transferred 487 | . . 487 Parts Sabotaged . | . . . Parts Stolen . | . . . Parts Stripped . | . . . Power Chain Reactions . | . . . Alert | -11 -10 -10 ------- Run | Yrd Mat Sub Peak Influence 220 | . 220 . Initial . | . . . Average 61 | . 70 . Maximum Alert Level 1 | . 1 . Low Security (%) 93 | 100 93 . Level 1 6 | . 6 . Level 2 . | . . . Level 3 . | . . . Level 4 . | . . . Level 5 . | . . . High Security . | . . . Max Security . | . . . Squads Dispatched 2 | . 2 . Investigation 1 | . 1 . Extermination . | . . . Reinforcement 1 | . 1 . Assault . | . . . Garrison . | . . . Intercept . | . . . Searches Triggered . | . . . Construction Impeded . | . . . Haulers Reinforced . | . . . Active Scanning Responses . | . . . Cargo Convoy Interrupts . | . . . Stealth | -11 -10 -10 --------- Run | Yrd Mat Sub Distress Signals . | . . . Communications Jammed . | . . . Distress Signals . | . . . Times Spotted 18 | . 13 5 Peak Tracking Total 4 | . 4 2 Tactical Retreats 1 | . 1 . Traps | -11 -10 -10 ------- Run | Yrd Mat Sub Traps Triggered 2 | . . 2 Indirectly . | . . . Trap Hack Attempts . | . . . Triggered . | . . . Disarmed . | . . . Reprogrammed . | . . . Reused . | . . . Traps Extracted . | . . . Installed . | . . . Triggered . | . . . Machines | -11 -10 -10 ---------- Run | Yrd Mat Sub Machines Disabled . | . . . Max in Single Turn . | . . . Machines Repaired . | . . . Machines Dismantled . | . . . Machines Sabotaged . | . . . Overloaded Fab Kills . | . . . Hacking | -11 -10 -10 --------- Run | Yrd Mat Sub Machines Accessed 5 | . 3 2 Terminals 3 | . 3 . Fabricators . | . . . Repair Stations . | . . . Recycling Units . | . . . Scanalyzers . | . . . Garrison Access . | . . . Total Hacks 20 | . 7 13 Successful 15 | . 2 13 Failed 5 | . 5 . Catastrophic . | . . . Database Lockouts . | . . . Manual 3 | . . 3 Terminals 7 | . 7 . Fabricators . | . . . Repair Stations . | . . . Recycling Units . | . . . Scanalyzers . | . . . Garrison Access . | . . . Terminal Hacks 15 | . 2 13 Record 12 | . . 12 Prototype ID Bank 1 | . 1 . Hauler Manifests 1 | . 1 . Derelict Proto ID Bank 1 | . . 1 Fabricator Hacks . | . . . Repair Station Hacks . | . . . Recycling Unit Hacks . | . . . Scanalyzer . | . . . Garrison Access Hacks . | . . . Unauthorized Hacks . | . . . Terminals . | . . . Fabricators . | . . . Repair Stations . | . . . Recycling Units . | . . . Scanalyzers . | . . . Garrison Access . | . . . Data Cores Recovered 1 | . 1 . Used . | . . . Hacking Detections 3 | . 3 . Full Trace Events 1 | . 1 . Feedback Events . | . . . Feedback Blocked . | . . . Robot Schematics Acquired . | . . . Robots Built . | . . . Authchips . | . . . Time . | . . . Total Robot Build Rating . | . . . Part Schematics Acquired . | . . . Parts Built . | . . . Authchips . | . . . Time . | . . . Total Part Build Rating . | . . . Parts Repaired . | . . . Time . | . . . Parts Recycled . | . . . Recycled Matter . | . . . Retrieved Matter . | . . . Retrieved Components . | . . . Parts Scanalyzed . | . . . Part Schematics Acquired . | . . . Parts Damaged . | . . . Bothacking | -11 -10 -10 ------------ Run | Yrd Mat Sub Used RIF Installer . | . . . Robots Hacked . | . . . Non-combat . | . . . Combat . | . . . Robot Hacks Applied . | . . . Relay Couplers Released . | . . . Fabnet Peak Effective % . | . . . Robots Rewired . | . . . Allies Hacked . | . . . Hacks Repelled . | . . . Allies | -11 -10 -10 -------- Run | Yrd Mat Sub Total Allies . | . . . Largest Group . | . . . Highest-Rated Group . | . . . Highest-Rated Ally . | . . . Total Orders . | . . . Ally Attacks . | . . . Total Damage . | . . . Kills . | . . . Allies Corrupted . | . . . Allies Melted . | . . . Intel | -11 -10 -10 ------- Run | Yrd Mat Sub Robot Analysis Total . | . . . Derelict Logs Recovered 2 | . . 2 Drone Launches . | . . . Drone Recoveries . | . . . Exploration | -11 -10 -10 ------------- Run | Yrd Mat Sub Turns Passed 4200 | 82 620 3498 Spaces Moved 1645 | 55 259 1331 Core 28 | 28 . . Treads 536 | 27 259 250 Legs 1081 | . . 1081 Wheels . | . . . Hover . | . . . Flight . | . . . Fastest Speed 50 | 50 160 240 Average Speed 241 | 129 188 256 Slowest Speed 260 | 200 240 260 Overloaded Moves . | . . . Propulsion Burnouts . | . . . Robots Hopped . | . . . Cave-ins Triggered . | . . . Exploration Rate (%) 34 | 4 42 58 Regions Visited 2 Branch Regions 1 Pre-discovered Areas . | . . . Known Exits Taken . | . . . Unknown Exits Taken 2 | 1 1 . Scrap Searched 1 | . . 1 Spaces Dug . | . . . Terrain Destroyed . | . . . Melee . | . . . Projectile . | . . . AOE . | . . . Terrain Rammed . | . . . Walls Destroyed . | . . . Machines Disabled . | . . . Actions | -11 -10 -10 --------- Run | Yrd Mat Sub Total 1774 | 63 329 1382 Wait 44 | . 31 13 Move 1643 | 54 258 1331 Hop . | . . . Pick Up 8 | 3 1 4 Fast Attach 9 | 6 1 2 Attach 4 | . . 4 Detach 1 | . . 1 Swap 6 | . 4 2 Drop . | . . . Fire 59 | . 34 25 Melee . | . . . Ram . | . . . Kick . | . . . Crush . | . . . Escape Stasis . | . . . Rewire . | . . . Trap . | . . . Miscellaneous . | . . . Route ------- -11/Scrapyard -10/Materials (discovered 2 exits: [*Mat] / *Sub) -10/Subcaves History --------- Turn | Location | Event 6 | -11/Scrapyard | Discovered new exit (range 14) 83 | -11/Scrapyard | Entered Materials 301 | -10/Materials | Build established: Mutant 604 | -10/Materials | Discovered new exit (range 7) 669 | -10/Materials | Discovered new exit (range 12) 703 | -10/Materials | Entered Subcaves 742 | -10/Subcaves | A swath of the cavern ceiling suddenly collapsed 866 | -10/Subcaves | Core integrity fell below 50% 894 | -10/Subcaves | Lost 3 parts (1p2w) 904 | -10/Subcaves | Learned location of 1 exit from Materials 1224 | -10/Subcaves | Learned 2 Materials zone layouts 1338 | -10/Subcaves | Disturbed a concealed Subdweller 2142 | -10/Subcaves | Visited 4L-MR0's lab 2888 | -10/Subcaves | Core integrity fell below 20% 3362 | -10/Subcaves | Visited Clippyterm 3369 | -10/Subcaves | Learned Research security intel 3832 | -10/Subcaves | Shifting Twisted Machinery released Sub. Power Source 4201 | -10/Subcaves | Destroyed by KT-2XT(R) with Subdweller Laser Last Messages --------------- like help? Data stored: Research security intel. >>Record! "Botnets" It looks like you seek to become a more effective hacker when it comes to the important hacks, and I heartily recommend installing Trojan(Botnet) on at least one or two Terminals to improve your odds of success elsewhere. >>Record! "Optimus" It looks like you're curious about the current leader of 0bPrime. Optimus is well liked, but is certainly not being up front with the UFD as a whole. 03590_ Acquired Sub. Shrapnel Launcher. 03737_ Acquired 10 matter. Sub. Power Source falls loose from the Twisted Machinery. 03857_ Acquired Sub. Power Source. 04201_ D7-1KQ(R) suffers critical hit (Destroy). Map ----- +----------------------------------------------------+ | ????????????????????????????## #????## ###### | | ?????????????????????????????# #???## ##??## | | ????????????????????????????## ###### ##???# | | ????????????????????????????# # ##????# | | ????????????????????????????# #?????## | | ????????????????????????????# ##?????## | | ????????????????????????????### #??????# | | ?????????????????????????????## #???#### | | ?????????????????????????????# ## ##??## | | ?????????????????????????????# #####???# | | ?????????????????????????????##### #??????## | | ?????????????????????????????????## #??????# # | | ?????????????????????????????????# #??????## | | ??????????????????????????????#### ##???????# | | ?????????????????????????????## # # #??????# ### | | ????????????????????????????## #??????##??? | | ??????????????????###???????# #??????????? | | ?????????????????## ??????# ## # #??????????? | | ????????????????## ??????# #######??????????? | | ????????????????#; ;?????# #???????????????? | | ???????????????## ;?????## #??#????????????? | | ??????????? ; # RR;;????# ## ####?????????? | | ??????????? ;????## #?????????? | | ?????????? ; ;???# # # #?????? | | ?????????? ; ; #### #???????? | | ?????????? @ ##???????? | | ?????????????????### #;; # #????????? | | ??????????????????????######### ######?#????????? | | ??????????????????????????????####???????????????? | | ?????????????????????????????????????????????????? | | ?????????????????????????????????????????????????? | | ?????????????????????????????????????????????????? | | ?????????????????????????????????????????????????? | | ?????????????????????????????????????????????????? | | ?????????????????????????????????????????????????? | | ?????????????????????????????????????????????????? | | ?????????????????????????????????????????????????? | | ?????????????????????????????????????????????????? | | ?????????????????????????????????????????????????? | | ?????????????????????????????????????????????????? | | ?????????????????????????????????????????????????? | | ?????????????????????????????????????????????????? | | ?????????????????????????????????????????????????? | | | | | | | | | | | | | | | +----------------------------------------------------+ Best States ------------- Heat Dissipation 25 Energy Generation 15 Energy Capacity 200 Matter Stores 300 Matter Capacity 350 Sight Range 16 Terrain Scan Density 10 Evasion (%) 50 Recoil Reduction 2 Offensive Hacking 10 Item Schematics ----------------- None Robot Schematics ------------------ None Fabricated ------------ Nothing Alien Tech Used ----------------- None Achievements -------------- None Challenges ------------ None Game ------ Seed VortexPlatingShearcannon Manual? 0 Play Time 00:15:13 Cumulative 21.5 hours Start 2024.12.17 @ 22:37:56 End 2024.12.17 @ 22:51:51 Sessions 1 Manual Loads 0 Difficulty Rogue Special Mode None Game No. 65 Rogue 65 Adventurer 0 Explorer 0 Win Type - Total 0 Types 0/0/0/0/0/0/0/0/0 Lore% 11 Gallery% 25 Achievement% 21 Wizard Run 0 Options --------- Layout 1 ASCII 0 Keyboard 1 Movement Numpad Keybinds 1 Fullscreen 1 Font 24/Smallcaps Map View 50x35 Zoom Use 44% Tactical HUD 1 Map Filters NONE Filters NONE Steam 1 RUN: 1631e18b-d4f1-4487-882c-66a7416c3570